Cogmind - Beta 15 @@@ ROGUE MODE // 2025.07.17 @ 12:57:41 Player: Welles Greysong Result: Self-destructed Performance ------------- Evolutions (4) 2000 Regions Visited (4) 800 Robots Destroyed (8) 40 Value Destroyed (144) 144 Prototype IDs (6) 120 Alien Tech Used (0) 0 Bonus (800) 800 TOTAL SCORE: 3904 Bonus ------- Registered with UFD 300 Met Optimus in HQ 500 Cogmind --------- Core Integrity 713/850 Matter 289/300 Energy 250/250 System Corruption 2% Temperature Cool (0) Movement Walking (190) Ox1 Location -6/Factory Parts ------- > --- POWER (2) -------- Ion Engine > --- PROPULSION (4) --- Overtuned Titanium Leg Overtuned Titanium Leg Overtuned Titanium Leg Flexi-carbon Leg > --- UTILITY (6) ------ Large Storage Unit Enhanced Optical Array Improved Terrain Scanner Advanced Melee Analysis Suite Improved Actuator Array Transmission Jammer > --- WEAPON (3) ------- Heavy Flail > --- INVENTORY (15) --- Overtuned Titanium Leg Nuclear Pulse Thruster Nuclear Pulse Thruster Scrap Suit Large Storage Unit Seismic Detector Overtuned Pulse Rifle Overtuned Pulse Rifle Heavy Rocket Launcher Datajack Remote Datajack CPS Tube (2) DRS Beacon (Ready) Peak State ------------ > --- POWER ------------ Ion Engine Ion Engine > --- PROPULSION ------- Overtuned Titanium Leg Overtuned Titanium Leg Overtuned Titanium Leg Overtuned Titanium Leg > --- UTILITY ---------- Large Storage Unit Enhanced Optical Array Improved Terrain Scanner Advanced Melee Analysis Suite Improved Actuator Array Transmission Jammer > --- WEAPON ----------- CPS Tube Heavy Flail Ripteeth > --- INVENTORY -------- Subdweller Power Source Nuclear Pulse Thruster Nuclear Pulse Thruster Scrap Suit Large Storage Unit Seismic Detector Overtuned Pulse Rifle Overtuned Pulse Rifle Subdweller Machine Gun Datajack Remote Datajack CPS Tube DRS Beacon [Rating: 51] Favorites ----------- Power Ion Engine Engine Ion Engine Propulsion Overtuned Titanium Leg Leg Overtuned Titanium Leg Wheel Wheel Utility Improved Terrain Scanner Device Improved Terrain Scanner Storage Large Storage Unit Processor Enhanced Optical Array Weapon Medium Laser Energy Gun Medium Laser Special Weapon CPS Tube Impact Weapon Heavy Flail Slashing Weapon Ripteeth Special Melee Weapon Datajack Build | -11 -10 -10 -8 -6 ------- Run | Yrd Mat Sub Scr Fac Slots Evolved 8 | . . . . 8 Power 1 | . . . . 1 Propulsion 2 | . . . . 2 Utility 4 | . . . . 4 Weapon 1 | . . . . 1 Parts Attached 28 | 8 . . 9 11 Power 3 | 1 . . . 2 Engine 3 | 1 . . . 2 Core . | . . . . . Reactor . | . . . . . Propulsion 10 | 2 . . 6 2 Treads . | . . . . . Leg 8 | . . . 6 2 Wheel 2 | 2 . . . . Hover . | . . . . . Flight . | . . . . . Utility 8 | 2 . . 2 4 Device 3 | 1 . . . 2 Storage 3 | 1 . . 2 . Processor 2 | . . . . 2 Hackware . | . . . . . Protection . | . . . . . Artifact . | . . . . . Weapon 7 | 3 . . 1 3 Energy Gun 3 | 3 . . . . Energy Cannon . | . . . . . Ballistic Gun . | . . . . . Ballistic Cannon . | . . . . . Launcher . | . . . . . Special Weapon 1 | . . . . 1 Impact Weapon 1 | . . . . 1 Slashing Weapon 1 | . . . . 1 Piercing Weapon . | . . . . . Special Melee Weapon 1 | . . . 1 . Unidentified Prototypes . | . . . . . Parts Lost 4 | . . . . 4 Power 2 | . . . . 2 Propulsion . | . . . . . Utility . | . . . . . Weapon 2 | . . . . 2 Highest Loss Streak 2 | . . . . 2 To Critical Strikes . | . . . . . Average Backups 10 | 1 3 6 10 11 Power 1 | . 1 2 2 . Propulsion 1 | . 1 1 1 1 Utility 3 | . . 1 3 2 Weapon 2 | . 1 1 2 3 Tool/Special . | . . . . . Unused Backups 19 | 2 . . 7 10 Power 3 | 1 . . 2 . Propulsion 3 | . . . 1 2 Utility 7 | 1 . . 4 2 Weapon 4 | . . . . 4 Tool/Special 2 | . . . . 2 Average Slot Usage (%) 96 | . 100 100 100 83 Engine 13 | . 14 14 14 12 Leg 6 | . . . 2 25 Wheel 20 | . 28 28 25 . Device 13 | . 14 14 14 12 Storage 12 | . 14 14 14 6 Processor 1 | . . . . 9 Energy Gun 13 | . 28 28 16 . Impact Weapon 1 | . . . . 6 Special Melee Weapon 8 | . . . 11 1 Peak Build Rating 51 | 9 9 10 17 51 Average Rating 16 | 6 9 9 11 41 On Entrance 9 | . 9 9 10 17 Naked Turns . | . . . . . Heaviest Build 45 | 15 15 15 29 45 Greatest Support 77 | 26 26 26 38 77 Greatest Overweight (x) 9 | . . . 9 2 Average Overweight (x) . | . . . . . Largest Inventory Capacity 15 | 8 8 8 15 15 Average Capacity 12 | 7 8 8 12 15 Most Carried 15 | 3 4 8 15 14 Average Carried 11 | 2 3 6 12 13 Final Capacity 15 | 8 8 8 15 15 Final Carried 15 | 3 4 8 15 14 Class Distribution -------------------- 81% | Mutant 17% | Scavenger-Mutant Dominant Class ---------------- Mutant | -10/Materials Mutant | -10/Subcaves Mutant | -8/Scraptown Scavenger-Mutant | -6/Factory Resources | -11 -10 -10 -8 -6 ----------- Run | Yrd Mat Sub Scr Fac Matter Collected 509 | 280 . . 140 89 Remotely . | . . . . . Salvage Created 252 | 163 . . . 89 Parts 16 | 6 . . . 10 Haulers Intercepted . | . . . . . Recyclers Shooed . | . . . . . Parts Field Recycled . | . . . . . Retrieved Matter . | . . . . . Parts Self-Destructed 18 | . . 18 . . Prevented . | . . . . . Kills | -11 -10 -10 -8 -6 ------- Run | Yrd Mat Sub Scr Fac Combat Hostiles Destroyed 2 | . . . . 2 Melee 2 | . . . . 2 Classes Destroyed 6 | 2 . . . 4 Builder 1 | . . . . 1 Tunneler 3 | 3 . . . . Recycler 1 | 1 . . . . Watcher 1 | . . . . 1 Swarmer 1 | . . . . 1 Programmer 1 | . . . . 1 Best Kill Streak 3 | 3 . . . 1 Combat Bots Only 1 | . . . . 1 Max Kills in Single Turn 1 | 1 . . . 1 Gunslinging . | . . . . . Exploded . | . . . . . Melee 1 | . . . . 1 Uniques/NPCs Destroyed . | . . . . . Combat | -11 -10 -10 -8 -6 -------- Run | Yrd Mat Sub Scr Fac Hostile Shots Fired 63 | . . . 27 36 Missed 11 | . . . 8 3 Hits 52 | . . . 19 33 Projectile 52 | . . . 19 33 Damage Taken 806 | . . . 230 576 Core 214 | . . . 77 137 Absorbed by Shields . | . . . . . Core Remaining (%) 84 | 100 . . 69 . Volleys Fired 18 | 15 . 2 . 1 Largest 2 | 2 . 2 . 1 Hottest 100 | 100 . 100 . . Shots Fired 35 | 30 . 4 . 1 Gun 34 | 30 . 4 . . Cannon . | . . . . . Launcher . | . . . . . Special 1 | . . . . 1 Kinetic . | . . . . . Thermal 28 | 24 . 4 . . Explosive . | . . . . . Electromagnetic 6 | 6 . . . . Robot Hit Streak 8 | 8 . 1 . 2 Robot Miss Streak 2 | 2 . 1 . . Penetration Max . | . . . . . Secondary Targets . | . . . . . Shots Hit Robots 75 | 18 . 1 42 14 Core Hits 8 | 5 . . . 3 Critical Kills . | . . . . . Critical Parts Destroyed 1 | . . . . 1 Critical Strikes 4 | 3 . . . 1 Burn 2 | 2 . . . . Corrupt 1 | 1 . . . . Smash 1 | . . . . 1 Melee Attacks 65 | . . . 42 23 Impact 21 | . . . . 21 Slashing 2 | . . . . 2 Piercing . | . . . . . Sneak Attacks 41 | . . . 40 1 Combat Hostiles . | . . . . . Follow-up Attacks 1 | . . . . 1 Damage Inflicted 948 | 241 . 12 . 695 Guns 253 | 241 . 12 . . Cannons . | . . . . . Explosions . | . . . . . Melee 695 | . . . . 695 Ramming . | . . . . . Kinetic . | . . . . . Thermal 200 | 188 . 12 . . Explosive . | . . . . . Electromagnetic 53 | 53 . . . . Impact 691 | . . . . 691 Slashing 4 | . . . . 4 Piercing . | . . . . . Highest Corruption 2 | . . . . 2 Average Corruption 1 | . . . . 1 Corruption Purged . | . . . . . Corruption Blocked . | . . . . . Effects 7 | . . . . 7 Message Errors 3 | . . . . 3 Heat Flow Errors 1 | . . . . 1 Energy Discharges 1 | . . . . 1 Data Loss (minor) 1 | . . . . 1 Alerts 1 | . . . . 1 Overload Shots . | . . . . . Overflow Damage 271 | . . . . 271 Projectiles . | . . . . . Explosions . | . . . . . Melee 271 | . . . . 271 Knockbacks 5 | . . . . 5 Impact 5 | . . . . 5 Kinetic . | . . . . . Secondary . | . . . . . Self-Inflicted Damage . | . . . . . Shots . | . . . . . Rammed . | . . . . . Targets Rammed . | . . . . . Kicked . | . . . . . Crushed . | . . . . . Highest Temperature 180 | 180 . . 19 139 Average Temperature 59 | 61 . . 10 76 Received Heat Transfer 144 | . . . 144 . Siege Activations . | . . . . . Martial Activations . | . . . . . Shielding Activations . | . . . . . Robots Disrupted . | . . . . . Combat Hostiles . | . . . . . Robots Corrupted 1 | . . . . 1 Combat Hostiles . | . . . . . Parts Fried 4 | 1 . . . 3 Impact Corruptions 12 | . . . . 12 Robots Melted . | . . . . . Combat Hostiles . | . . . . . Parts Melted 1 | 1 . . . . Heat Transferred 740 | 703 . 37 . . Parts Sabotaged . | . . . . . Parts Stolen . | . . . . . Parts Stripped . | . . . . . Power Chain Reactions . | . . . . . Alert | -11 -10 -10 -8 -6 ------- Run | Yrd Mat Sub Scr Fac Maximum Alert Level . | . . . . . Low Security (%) 100 | 100 100 . . 100 Level 1 . | . . . . . Level 2 . | . . . . . Level 3 . | . . . . . Level 4 . | . . . . . Level 5 . | . . . . . High Security . | . . . . . Max Security . | . . . . . Peak Influence 33 | 5 3 . . 33 Initial 3 | . 3 . . . Average 4 | 1 2 . . 4 Influence Increases 151 | 20 . . . 131 Destroy 0b10 Robot/C 40 | . . . . 40 Destroy 0b10 Robot/NC 30 | 20 . . . 10 Destroy Leader 12 | . . . . 12 Successful Hack 37 | . . . . 37 Destroy Structure 2 | . . . . 2 Lose Combat Pursuer 30 | . . . . 30 Influence Decreases 149 | 15 5 . . 129 Entered New Map 2 | . 2 . . . Time Decay 137 | 15 3 . . 119 Lost Part 10 | . . . . 10 Squads Dispatched 2 | . . . . 2 Investigation . | . . . . . Extermination 1 | . . . . 1 Reinforcement 1 | . . . . 1 Assault . | . . . . . Garrison . | . . . . . Intercept . | . . . . . Searches Triggered . | . . . . . Construction Impeded . | . . . . . Haulers Reinforced . | . . . . . Active Scanning Responses . | . . . . . Cargo Convoy Interrupts . | . . . . . Stealth | -11 -10 -10 -8 -6 --------- Run | Yrd Mat Sub Scr Fac Distress Signals . | . . . . . Communications Jammed . | . . . . . Distress Signals . | . . . . . Times Spotted 37 | . . . 23 14 Peak Tracking Total 10 | . . . 10 3 Tactical Retreats 3 | . . . 1 2 Traps | -11 -10 -10 -8 -6 ------- Run | Yrd Mat Sub Scr Fac Traps Triggered 1 | . . . . 1 Indirectly . | . . . . . Trap Hack Attempts . | . . . . . Triggered . | . . . . . Disarmed . | . . . . . Reprogrammed . | . . . . . Reused . | . . . . . Traps Extracted . | . . . . . Installed . | . . . . . Triggered . | . . . . . Machines | -11 -10 -10 -8 -6 ---------- Run | Yrd Mat Sub Scr Fac Machines Disabled . | . . . . . Max in Single Turn . | . . . . . Machines Repaired . | . . . . . Machines Dismantled . | . . . . . Machines Sabotaged . | . . . . . Overloaded Fab Kills . | . . . . . Hacking | -11 -10 -10 -8 -6 --------- Run | Yrd Mat Sub Scr Fac Machines Accessed 13 | . . 1 7 5 Terminals 5 | . . . . 5 Fabricators . | . . . . . Repair Stations . | . . . . . Recycling Units . | . . . . . Scanalyzers . | . . . . . Garrison Access . | . . . . . Total Hacks 65 | . . 4 51 10 Successful 60 | . . 4 51 5 Failed 5 | . . . . 5 Catastrophic . | . . . . . Database Lockouts . | . . . . . Manual 7 | . . 2 . 5 Terminals 10 | . . . . 10 Fabricators . | . . . . . Repair Stations . | . . . . . Recycling Units . | . . . . . Scanalyzers . | . . . . . Garrison Access . | . . . . . Terminal Hacks 58 | . . 4 51 3 Record 53 | . . 4 47 2 Robot Analysis 4 | . . . 4 . Zone Layout 1 | . . . . 1 Fabricator Hacks . | . . . . . Repair Station Hacks . | . . . . . Recycling Unit Hacks . | . . . . . Scanalyzer . | . . . . . Garrison Access Hacks . | . . . . . Unauthorized Hacks 2 | . . . . 2 Terminals 2 | . . . . 2 Botnet 1 | . . . . 1 Operators 1 | . . . . 1 Fabricators . | . . . . . Repair Stations . | . . . . . Recycling Units . | . . . . . Scanalyzers . | . . . . . Garrison Access . | . . . . . Data Cores Recovered . | . . . . . Used . | . . . . . Hacking Detections 5 | . . . . 5 Full Trace Events . | . . . . . Feedback Events . | . . . . . Feedback Blocked . | . . . . . Robot Schematics Acquired . | . . . . . Robots Built . | . . . . . Authchips . | . . . . . Time . | . . . . . Total Robot Build Rating . | . . . . . Part Schematics Acquired . | . . . . . Parts Built . | . . . . . Authchips . | . . . . . Time . | . . . . . Total Part Build Rating . | . . . . . Parts Repaired . | . . . . . Time . | . . . . . Parts Recycled . | . . . . . Recycled Matter . | . . . . . Retrieved Matter . | . . . . . Retrieved Components . | . . . . . Parts Scanalyzed . | . . . . . Part Schematics Acquired . | . . . . . Parts Damaged . | . . . . . Bothacking | -11 -10 -10 -8 -6 ------------ Run | Yrd Mat Sub Scr Fac Used RIF Installer . | . . . . . Robots Hacked 40 | . . . 40 . Non-combat 11 | . . . 11 . Combat 29 | . . . 29 . Robot Hacks Applied 40 | . . . 40 . parse_system 40 | . . . 40 . Relay Couplers Released . | . . . . . Fabnet Peak Effective % . | . . . . . Robots Rewired . | . . . . . Allies Hacked . | . . . . . Hacks Repelled . | . . . . . Allies | -11 -10 -10 -8 -6 -------- Run | Yrd Mat Sub Scr Fac Total Allies . | . . . . . Largest Group . | . . . . . Highest-Rated Group . | . . . . . Highest-Rated Ally . | . . . . . Total Orders . | . . . . . Ally Attacks . | . . . . . Total Damage . | . . . . . Kills . | . . . . . Allies Corrupted . | . . . . . Allies Melted 1 | . . . 1 . Intel | -11 -10 -10 -8 -6 ------- Run | Yrd Mat Sub Scr Fac Active Infowar (turns) 3423 | 39 26 242 2441 675 Optics 649 | . . . . 649 Terrain 3423 | 39 26 242 2441 675 Jamming 94 | . . . . 94 Robot Analysis Total 4 | . . . 4 . Derelict Logs Recovered 3 | . . 1 2 . Drone Launches . | . . . . . Drone Recoveries . | . . . . . Exploration | -11 -10 -10 -8 -6 ------------- Run | Yrd Mat Sub Scr Fac Turns Passed 3518 | 134 26 242 2441 675 Spaces Moved 3114 | 80 26 226 2317 465 Core 6 | 1 . . 5 . Treads . | . . . . . Legs 611 | . . . 146 465 Wheels 2497 | 79 26 226 2166 . Hover . | . . . . . Flight . | . . . . . Fastest Speed 50 | 50 90 90 90 100 Average Speed 102 | 89 90 90 100 125 Slowest Speed 500 | 90 90 90 500 260 Overloaded Moves . | . . . . . Propulsion Burnouts . | . . . . . Robots Hopped . | . . . . . Potential Cave-ins . | . . . . . Cave-ins Triggered . | . . . . . Exploration Rate (%) 29 | 5 9 18 93 21 Regions Visited 4 Branch Regions 2 Pre-discovered Areas 4 | . . 2 2 . Known Exits Taken . | . . . . . Unknown Exits Taken 4 | 1 1 1 1 . Scrap Searched 5 | . . . 5 . Spaces Dug 2 | . . . . 2 Terrain Destroyed 2 | . . . . 2 Melee 2 | . . . . 2 Projectile . | . . . . . AOE . | . . . . . Terrain Rammed . | . . . . . Walls Destroyed . | . . . . . Machines Disabled . | . . . . . Actions | -11 -10 -10 -8 -6 --------- Run | Yrd Mat Sub Scr Fac Total 3342 | 109 28 260 2424 521 Wait 71 | . 2 29 25 15 Move 3110 | 79 25 225 2316 465 Hop . | . . . . . Pick Up 29 | 5 1 4 14 5 Fast Attach 13 | 7 . . 2 4 Attach 6 | . . . . 6 Detach . | . . . . . Swap 10 | 1 . . 7 2 Drop 20 | 2 . . 16 2 Fire 18 | 15 . 2 . 1 Melee 63 | . . . 42 21 Ram . | . . . . . Kick . | . . . . . Crush . | . . . . . Escape Stasis . | . . . . . Rewire 2 | . . . 2 . Trap . | . . . . . Miscellaneous . | . . . . . Route ------- -11/Scrapyard -10/Materials -10/Subcaves -8/Scraptown (discovered 2 exits: *Fac x2) -6/Factory History --------- Turn | Location | Event 19 | -11/Scrapyard | Discovered new exit (range 15) 135 | -11/Scrapyard | Entered Materials 136 | -10/Materials | Met a group of wandering Federalists 157 | -10/Materials | Discovered new exit (range 6) 161 | -10/Materials | Entered Subcaves 161 | -10/Subcaves | Accompanied by 2 allies 162 | -10/Subcaves | Shifting Twisted Machinery released Sub. Power Source 162 | -10/Subcaves | Continued accompanying wandering Federalists (3) 165 | -10/Subcaves | Shifting Twisted Machinery released Sub. Machine Gun 307 | -10/Subcaves | Build established: Mutant 380 | -10/Subcaves | Visited Clippyterm 383 | -10/Subcaves | Learned location of Extension (-4) 383 | -10/Subcaves | Learned location of Section 7 (-2) 396 | -10/Subcaves | Wandering Federalist uncovered a shortcut to Scraptown 403 | -10/Subcaves | Entered Scraptown 533 | -8/Scraptown | Visited Cave Peace 560 | -8/Scraptown | Visited Comm Corps 632 | -8/Scraptown | Heard Great Nut preacher, LISTEN AND RECITE! 638 | -8/Scraptown | Visited UFD Registry 644 | -8/Scraptown | Visited Artisan Demo Area 878 | -8/Scraptown | Visited Shadow of the Wyrm 926 | -8/Scraptown | Scanned Subdweller tech in exchange for log data 928 | -8/Scraptown | Learned location of Testing (-3) 929 | -8/Scraptown | Learned Factory terminal intel 943 | -8/Scraptown | Discovered new exit (range 5) 1477 | -8/Scraptown | Registered with UFD as "Maceblaster" 1516 | -8/Scraptown | Visited Cartography Club 1588 | -8/Scraptown | Visited Scrapoid Research Area 1677 | -8/Scraptown | Visited Curators Association 1716 | -8/Scraptown | Visited Analyses Database 1746 | -8/Scraptown | Visited LU-1G1's Boring Crew 1828 | -8/Scraptown | Visited Science Testing Area 1848 | -8/Scraptown | Visited Derelict Rescue Squad 1860 | -8/Scraptown | Found DRS Beacon 1884 | -8/Scraptown | Visited DA-N13 Charitable Foundation 1891 | -8/Scraptown | Found DCF Scrap (29 items) 1915 | -8/Scraptown | Visited Abandonware Association 1932 | -8/Scraptown | Learned abandonware demo "HACKBUD.EXE" 1932 | -8/Scraptown | Learned abandonware demo "SHUTEYE.EXE" 1971 | -8/Scraptown | Visited Research Penetration Think Tank 2017 | -8/Scraptown | Discovered new exit (range 3) 2043 | -8/Scraptown | Found Scrap Suit 2476 | -8/Scraptown | Met Optimus 2476 | -8/Scraptown | Accepted into 0bPrime 2595 | -8/Scraptown | Civil war broke out across Scraptown 2673 | -8/Scraptown | Lost 8 allies 2727 | -8/Scraptown | Lost 3 allies 2825 | -8/Scraptown | Lost 7 allies 2844 | -8/Scraptown | Entered Factory 2844 | -6/Factory | Evolved 8 slots: Power x1, Propulsion x2, Utility x4, Weapon x1 2845 | -6/Factory | Loaded intel: 26 terminal locations 3299 | -6/Factory | Allied Derelicts emerged from ambush trap array 3397 | -6/Factory | Lost 3 allies 3510 | -6/Factory | Build established: Scavenger-Mutant 3519 | -6/Factory | Self-destructed Last Messages --------------- 03435_ Ovr. Titanium Leg suddenly begins malfunctioning. 03458_ Ovr. Titanium Leg recovered from malfunction. 03467_ 9EHD3EECC6 MMGCTG1&NGL 03482_ ALERT: Cargo convoy en route, clear transfer corridor. 03486_ Ovr. Titanium Leg recovered from malfunction. 03489_ System corrupted: Component data lost. 03489_ Ovr. Titanium Leg suddenly begins malfunctioning. 03493_ S-27 Virus destroyed. 03496_ Acquired 19 matter. 03501_ Sub. Power Source destroyed. 03516_ Destroyed VTOL Module. 03516_ S-27 Virus system corrupted by crushing effect. 03516_ S-27 Virus knocked back. 03517_ S-27 Virus misfires. Map ----- +----------------------------------------------------+ | ?????????????????????????????????# """ / | | ?????????????????########????????# # | | ???????????????? #?""??????# ??# | | ????????????????? ##" ??????# ? ??# | | ?????????? ???? #?"F ?????# ??????# | | ?????????? ?? #?"" ?????##??????#?# | | ????????? ? """"" #? ?????#?????#?#?# | | ?????????? """"" ## ??? #???#??????#[ | | ????????? ! """ ## ?? #??????????# | | ????? ^ ## ? #????????### | | ???? ^ """"" ## """ #####???##?# | | ???? ^""""" ## """ # ?? ?# | | ?????? """ ## """ ## # | | ??????????# ## ## # | | ??????????# """"" ## """ ## + | | ??????????+ """"" ## """ ?# # | | ??????????# """ ## """ ???# ? # | | ??????????# ## ?????# ????# | | ???????#### """"" ##+#+#????# ??????# | | ????????# """"" #????###+#????## | | ????????# """ ######## ####### | | ????????+ | | ????????# ##+##########+####### | | ????????# ## ! #???# | | ????????# #####+##### #??## | | ????????# ?#=s [* @ s# """ """ """ #???# | | ????????# + """""" # """ """ """ #???# | | ????????# ## """""" # """ """ """ ###?# | | ????????# ???# """""" # ##??# | | ??????? ??????# """""" ################???# | | ??????????????# #???????? ??#??????# | | ???????#??????# """""" #??????????????????# | | ??????????????#k"""""" #?????? ?????? ???? | | ??????????????# """""" #??? ????????????? | | ??????????????# ?????? #???? ????????????""" | | ??????????????# ?????? #??? ?????????? ?"""" | | ??????????????????????###????????????????"" | | ???????????????????? ?????????????????????? | | ????????????????????????????????????#???????" | | ????????????????????????????????????????????" | | ???????????????????????????????????????????? | | ???????????????????? ???????????????????????? | | ?????????????????????????????????????????????? | | ?????????????????????????????????????????????? | | ?????????????????????????????????????????????? | | ?????????????????????????????????????????????? | | ?????????????????????????????????????????????? | | ?????????????????????????????????????????????? | | ?????????????????????????????????????????????? | | ?????????????????????????????????????????????? | +----------------------------------------------------+ Best States ------------- Heat Dissipation 37 Energy Generation 20 Energy Capacity 400 Matter Stores 300 Matter Capacity 300 Sight Range 22 Terrain Scan Range 16 Terrain Scan Density 10 Jamming Range 12 Evasion (%) 55 Melee Accuracy 8 Item Schematics ----------------- None Robot Schematics ------------------ None Fabricated ------------ Nothing Repaired ---------- Nothing Alien Tech Used ----------------- None Achievements -------------- None Challenges ------------ None Game ------ Seed HypercooledChipFlakker Manual? 0 Play Time 00:47:45 Cumulative 14.4 hours Start 2025.07.16 @ 17:24:25 End 2025.07.17 @ 12:57:41 Sessions 4 Manual Loads 0 Difficulty Rogue Special Mode None Game No. 53 Rogue 53 Adventurer 0 Explorer 0 Win Type - Total 0 Types 0/0/0/0/0/0/0/0/0/0 Lore% 26 Gallery% 32 Achievement% 27 Wizard Run 0 Options --------- Layout 1 ASCII 0 Keyboard 0 Movement Numpad Keybinds 0 Fullscreen 2 Font 24/Smallcaps Map View 50x35 Zoom Use 0% Tactical HUD 1 Map Filters NONE Filters NONE Steam 1 RUN: 5c3c423b-ba33-425b-bf6b-127840bcacd0